bitfinex/quotes_ETHUSD_20230105
["timestamp","ask_amount","ask_price","bid_price","bid_amount"]
[1672880201440,0.06987616,1255.1,1254.9,3.98914951]
[1672880201653,0.00387616,1255.1,1255.0,23.90436]
[1672880201973,0.00387616,1255.1,1255.0,27.97036]
[1672880202177,0.00387616,1255.1,1255.0,23.99501295]
[1672880202416,0.00387616,1255.1,1255.0,19.99501295]
[1672880203771,0.00387616,1255.1,1255.0,23.99501295]
[1672880204018,0.00387616,1255.1,1255.0,31.96313295]
[1672880211433,7.97136616,1255.1,1255.0,4.05877295]
[1672880211692,0.06987616,1255.1,1254.9,4.05514951]
[1672880212018,0.00387616,1255.1,1255.0,4.0]
[1672880212185,0.00387616,1255.1,1255.0,19.93624]
[1672880212559,0.00387616,1255.1,1255.0,27.97036]
[1672880212861,0.00387616,1255.1,1255.0,20.00224]
[1672880213076,0.00387616,1255.1,1255.0,32.01810495]
[1672880214166,0.00387616,1255.1,1255.0,28.01810495]
[1672880215508,0.00387616,1255.1,1255.0,20.04998495]
[1672880216484,0.00387616,1255.1,1255.0,12.08186495]
[1672880217196,0.00387616,1255.1,1255.0,20.04998495]
[1672880218856,0.00387616,1255.1,1255.0,16.00224]
[1672880219372,0.00387616,1255.1,1255.0,8.03412]
[1672880220899,0.00387616,1255.1,1255.0,16.00224]
[1672880228731,0.00387616,1255.1,1255.0,8.03412]
[1672880230202,0.00387616,1255.1,1255.0,16.00224]
[1672880230414,0.00387616,1255.1,1255.0,19.09821795]
[1672880233741,0.00387616,1255.1,1255.0,11.13009795]
[1672880235439,0.00387616,1255.1,1255.0,8.03412]
[1672880235818,0.00587616,1255.1,1255.0,0.064]
[1672880236049,0.00387616,1255.1,1254.9,23.97118]
[1672880236286,0.00387616,1255.1,1254.9,0.066]
[1672880236493,25.80540616,1255.1,1254.8,0.19607308]
[1672880236767,25.80540616,1255.1,1254.8,0.13083058]
[1672880236768,30.03778578,1255.1,1254.8,0.13083058]
[1672880237432,54.66458578,1255.1,1254.8,0.13083058]
[1672880238764,46.69703578,1255.1,1254.8,0.13083058]
[1672880238991,5.0,1255.0,1254.8,0.13083058]
[1672880239214,9.066,1255.0,1254.8,0.13083058]
[1672880239481,14.63570358,1255.0,1254.8,0.13083058]
[1672880239828,10.63570358,1255.0,1254.8,0.13083058]
[1672880241158,10.63570358,1255.0,1254.8,8.10020058]
[1672880241306,10.63570358,1255.0,1254.8,8.16544308]
[1672880242831,10.63570358,1255.0,1254.8,0.19607308]
[1672880242983,10.63570358,1255.0,1254.8,8.10018058]
[1672880243194,10.63570358,1255.0,1254.8,8.16542308]
[1672880243876,10.63570358,1255.0,1254.8,0.19607308]
[1672880244197,10.63570358,1255.0,1254.8,0.13083058]
[1672880246897,12.54570358,1255.0,1254.8,0.13083058]
[1672880247112,20.51382358,1255.0,1254.8,0.13083058]
[1672880248199,12.54570358,1255.0,1254.8,0.13083058]
[1672880248365,20.51390358,1255.0,1254.8,0.13083058]
[1672880248578,20.51690358,1255.0,1254.8,0.13083058]
[1672880250176,12.54870358,1255.0,1254.8,0.13083058]
[1672880250767,20.51689358,1255.0,1254.8,0.13083058]
[1672880250976,12.54870358,1255.0,1254.8,0.13083058]
[1672880252972,12.54870358,1255.0,1254.8,8.10022058]
[1672880253184,7.54870358,1255.0,1254.8,8.16546308]
[1672880254484,7.54870358,1255.0,1254.8,0.19607308]
[1672880254694,7.54870358,1255.0,1254.8,0.13083058]
[1672880255887,5.63570358,1255.0,1254.8,0.13083058]
[1672880257324,5.63570358,1255.0,1254.8,0.12732986]
[1672880259489,13.60388358,1255.0,1254.8,0.12732986]
[1672880261545,21.57206358,1255.0,1254.8,0.12732986]
[1672880263181,13.60388358,1255.0,1254.8,0.12732986]
[1672880264843,5.63570358,1255.0,1254.8,0.12732986]
[1672880272407,5.63199394,1255.0,1254.8,0.12732986]
[1672880272619,5.63399394,1255.0,1254.8,0.12732986]
[1672880272975,13.60215394,1255.0,1254.8,0.12732986]
[1672880273907,5.63399394,1255.0,1254.8,0.12732986]
[1672880277219,13.60213394,1255.0,1254.8,0.12732986]
[1672880278519,5.63399394,1255.0,1254.8,0.12732986]
[1672880281321,0.06429036,1255.0,1254.8,8.09664986]
[1672880281573,5.0,1255.0,1254.8,8.16189236]
[1672880281742,5.06429036,1255.0,1254.8,8.16189236]
[1672880282626,5.06429036,1255.0,1254.8,26.52425663]
[1672880283038,5.06429036,1255.0,1254.8,29.49184723]
[1672880283231,0.06429036,1255.0,1254.8,29.49184723]
[1672880283415,24.69109036,1255.1,1254.8,29.49184723]
[1672880284714,10.99209036,1255.1,1254.8,33.48099674]
[1672880285116,10.99209036,1255.1,1254.9,3.98914951]
[1672880285117,0.06429036,1255.1,1254.9,3.98914951]
[1672880285315,10.161,1255.3,1255.0,23.90436]
[1672880285516,10.22529036,1255.3,1255.0,23.9696025]
[1672880294454,10.22529036,1255.3,1255.0,23.96696386]
[1672880294707,10.22529036,1255.3,1255.0,27.66707172]
[1672880307024,14.22529036,1255.3,1255.0,27.66707172]
[1672880307176,10.22529036,1255.3,1255.0,27.66707172]
[1672880313017,18.19161036,1255.3,1255.0,8.03072386]
[1672880313236,18.19161036,1255.3,1255.0,15.99884386]
[1672880313237,10.22529036,1255.3,1255.0,15.99884386]
[1672880313900,20.10461036,1255.3,1255.0,0.0652425]
[1672880314285,40.44772807,1255.3,1254.9,0.0652425]
[1672880314483,40.44772807,1255.3,1254.8,66.00026236]
[1672880314798,40.44772807,1255.3,1254.9,7.96875]
[1672880315019,40.44772807,1255.3,1254.9,8.0339925]
[1672880315165,32.48140807,1255.3,1254.9,16.00009496]
[1672880316214,1.904,1255.2,1254.9,16.00009496]
[1672880316422,5.15124081,1255.2,1254.9,16.00009496]
[1672880316684,5.21553117,1255.2,1254.9,16.00009496]
[1672880317530,21.14994117,1255.2,1254.9,0.0652425]
[1672880317697,21.14994117,1255.2,1254.8,54.29105236]
[1672880317698,5.21553117,1255.2,1254.8,54.29105236]
[1672880317913,18.78913117,1255.2,1254.9,15.93731]
[1672880318177,18.78913117,1255.2,1254.9,16.0025525]
[1672880326317,16.88513117,1255.2,1254.9,16.0025525]
[1672880328478,24.85210117,1255.2,1254.9,8.0337925]
[1672880330359,16.88513117,1255.2,1254.9,8.0337925]
[1672880331255,24.85200117,1255.2,1254.9,8.0337925]
[1672880333432,16.88513117,1255.2,1254.9,8.0337925]
[1672880339529,16.88513117,1255.2,1254.9,8.03168563]
[1672880339852,20.88513117,1255.2,1254.9,8.03168563]
[1672880340244,16.88513117,1255.2,1254.9,8.03168563]
[1672880340469,16.88513117,1255.2,1254.9,23.96920563]
[1672880340634,13.63789036,1255.2,1254.9,30.99179318]
[1672880343114,39.45164036,1255.2,1254.9,0.0652425]
[1672880343278,39.45164036,1255.2,1254.8,35.35307236]
[1672880343685,39.45164036,1255.2,1254.8,43.32245236]
[1672880343897,31.48459036,1255.2,1254.8,46.42134236]
[1672880344321,9.0,1255.1,1254.8,46.42134236]
[1672880344530,13.1127494,1255.1,1254.8,16.13134236]
[1672880344993,20.0321494,1255.1,1254.8,16.13134236]
[1672880345632,21.9291494,1255.1,1254.8,16.13134236]
[1672880346076,29.8966694,1255.1,1254.8,8.16195236]
[1672880346292,37.8641894,1255.1,1254.8,0.19257236]
[1672880346610,37.8641894,1255.1,1254.8,0.12732986]
[1672880346611,45.8317094,1255.1,1254.8,0.12732986]
[1672880348757,37.8641894,1255.1,1254.8,0.12732986]
[1672880349089,38.4620894,1255.1,1254.8,0.12732986]
[1672880349508,37.8641894,1255.1,1254.8,0.12732986]
[1672880352303,29.8966694,1255.1,1254.8,8.09668986]
[1672880352444,29.8966694,1255.1,1254.8,8.16193236]
[1672880353327,20.0321494,1255.1,1254.8,24.10071236]
[1672880362143,15.0321494,1255.1,1254.8,24.10071236]
[1672880363589,15.0321494,1255.1,1254.8,24.09842651]
[1672880363799,19.0321494,1255.1,1254.8,24.09842651]
[1672880365010,15.0321494,1255.1,1254.8,24.09842651]
[1672880366688,15.0321494,1255.1,1254.8,24.09718401]
[1672880366859,15.0321494,1255.1,1254.8,24.09842651]
[1672880367285,10.98369036,1255.1,1254.8,27.31868819]
[1672880369113,14.98369036,1255.1,1254.8,27.31868819]
[1672880369306,14.98369036,1255.1,1254.8,24.09842651]
[1672880369475,10.98369036,1255.1,1254.8,24.09842651]
[1672880370692,10.9801976,1255.1,1254.8,24.09842651]
[1672880382472,10.9801976,1255.1,1254.8,16.12903651]
[1672880396967,14.82356336,1255.1,1254.8,24.09577629]
[1672880397155,14.82356336,1255.1,1254.8,16.12638629]
[1672880397793,22.79108336,1255.1,1254.8,8.15699629]
[1672880398003,32.67160336,1255.1,1254.8,0.18763629]
[1672880398216,5.0,1255.0,1254.8,0.12239379]
[1672880398515,24.9975076,1255.0,1254.8,0.12239379]
[1672880398792,29.96158694,1255.0,1254.8,0.12239379]
[1672880399777,25.96158694,1255.0,1254.8,0.12239379]
[1672880400780,29.96158694,1255.0,1254.8,0.12239379]
[1672880401361,25.96158694,1255.0,1254.8,0.12239379]
[1672880402314,33.93011694,1255.0,1254.8,0.12239379]
[1672880404463,47.65186694,1255.0,1254.8,0.12239379]
[1672880404625,39.68333694,1255.0,1254.8,0.12239379]
[1672880405820,31.71515694,1255.0,1254.8,0.12239379]
[1672880406545,39.68333694,1255.0,1254.8,0.12239379]
[1672880406876,1.913,1254.9,1254.8,0.12239379]
[1672880407090,27.16495068,1254.9,1254.8,0.12239379]
[1672880407405,35.42450828,1254.9,1254.8,0.12239379]
[1672880407919,27.45574828,1254.9,1254.8,0.12239379]
[1672880408357,35.42450828,1254.9,1254.8,0.12239379]
[1672880408504,39.41365779,1254.9,1254.8,0.12239379]
[1672880409127,14.19237779,1254.9,1254.8,0.12239379]
[1672880409591,10.20322828,1254.9,1254.8,0.12239379]
[1672880409752,9.97322828,1254.9,1254.8,0.12239379]
[1672880410124,9.97322828,1254.9,1254.8,8.09178379]
[1672880410338,9.97322828,1254.9,1254.8,8.15702629]
[1672880410699,9.97322828,1254.9,1254.8,0.18763629]
[1672880410909,9.97322828,1254.9,1254.8,0.12239379]
[1672880413480,13.97322828,1254.9,1254.8,0.12239379]
[1672880414005,37.87950828,1254.9,1254.8,0.12239379]
[1672880414568,42.09865779,1254.9,1254.8,0.12239379]
[1672880414783,52.35765779,1254.9,1254.8,0.12239379]
[1672880414988,43.79089779,1254.9,1254.8,0.12239379]
[1672880415620,35.82213779,1254.9,1254.8,0.12239379]
[1672880416492,23.85337779,1254.9,1254.8,0.12239379]
[1672880416646,19.63422828,1254.9,1254.8,0.12239379]
[1672880417750,19.63422828,1254.9,1254.8,16.06117379]
[1672880418057,19.63422828,1254.9,1254.8,16.12641629]
[1672880418868,15.3197976,1254.9,1254.8,24.09580629]
[1672880419087,15.3197976,1254.9,1254.8,16.12641629]
[1672880419500,15.3197976,1254.9,1254.8,24.09580629]
[1672880420142,15.3197976,1254.9,1254.8,24.09287342]
[1672880420351,5.0607976,1254.9,1254.8,24.09287342]
[1672880420784,0.0607976,1254.9,1254.8,24.09287342]
[1672880421000,13.7828976,1255.0,1254.8,24.09287342]
[1672880422645,13.7828976,1255.0,1254.8,8.15409342]
[1672880423723,13.7828976,1255.0,1254.8,16.12348342]
[1672880423882,13.7828976,1255.0,1254.8,8.15409342]
[1672880425691,13.7828976,1255.0,1254.8,24.09287342]
[1672880425907,13.7828976,1255.0,1254.8,16.12348342]
[1672880426724,13.7828976,1255.0,1254.8,8.15409342]
[1672880426938,17.06445394,1255.0,1254.8,16.12348342]
[1672880427524,13.7828976,1255.0,1254.8,24.09287342]
[1672880427907,13.7828976,1255.0,1254.8,16.12348342]
[1672880428125,13.7828976,1255.0,1254.8,24.09287342]
[1672880429999,13.7828976,1255.0,1254.8,16.12348342]
[1672880432126,13.7828976,1255.0,1254.8,24.09287342]
[1672880432344,13.7828976,1255.0,1254.8,16.12348342]
[1672880432514,16.67831736,1255.0,1254.8,16.12348342]
[1672880432941,16.67831736,1255.0,1254.8,8.15409342]
[1672880433394,16.67831736,1255.0,1254.8,16.12348342]
[1672880434952,16.67831736,1255.0,1254.8,24.09287342]
[1672880435595,13.7828976,1255.0,1254.8,24.09287342]
[1672880438902,0.0607976,1255.0,1254.8,24.09287342]
[1672880439077,10.7100976,1255.1,1254.8,24.09287342]
[1672880441114,10.7100976,1255.1,1254.8,24.09019058]
[1672880441270,10.7100976,1255.1,1254.8,24.08894808]
[1672880441477,10.7100976,1255.1,1254.8,27.30947042]
[1672880445581,10.7100976,1255.1,1254.8,27.30822792]
[1672880445790,10.7100976,1255.1,1254.8,27.30947042]
[1672880447060,0.0607976,1255.1,1254.9,3.98914951]
[1672880447273,10.523,1255.3,1255.0,23.90436]
[1672880447468,10.5837976,1255.3,1255.0,23.9696025]
[1672880447892,0.0607976,1255.3,1255.0,23.9696025]
[1672880448102,14.3229976,1255.4,1255.0,23.9696025]
[1672880448314,14.3229976,1255.4,1255.0,27.8752929]
[1672880448647,25.0240976,1255.4,1255.0,27.8752929]
[1672880452109,25.0240976,1255.4,1255.0,19.9071729]
[1672880452810,25.0240976,1255.4,1255.0,27.8752929]
[1672880453258,25.0240976,1255.4,1255.0,31.86444241]
[1672880454376,10.7618976,1255.4,1255.2,7.96685]
[1672880454566,10.7618976,1255.4,1255.2,8.0320925]
[1672880454729,10.7618976,1255.4,1255.2,10.8276517]
[1672880460567,10.7618976,1255.4,1255.2,18.7945017]
[1672880460726,10.7618976,1255.4,1255.2,10.8276517]
[1672880462113,10.76185161,1255.4,1255.2,10.8276517]
[1672880465978,10.76185161,1255.4,1255.2,26.7613517]
[1672880466240,0.06075161,1255.4,1255.2,26.7613517]
[1672880466407,0.06029914,1255.5,1255.2,26.7613517]
[1672880470871,0.06029914,1255.5,1255.2,30.75050121]
[1672880475482,0.06029914,1255.5,1255.4,23.89674]
[1672880475652,0.06029914,1255.5,1255.4,27.54715145]
[1672880478397,0.06029914,1255.5,1255.4,31.53630096]
[1672880481218,0.06029914,1255.5,1255.4,31.33630096]
[1672880482492,0.06029914,1255.5,1255.4,48.33630096]
[1672880497981,0.06029914,1255.5,1255.4,56.69230096]
[1672880504527,0.06029914,1255.5,1255.4,56.68842624]
[1672880506832,0.05646172,1255.6,1255.5,4.0]
[1672880507059,0.05646172,1255.6,1255.5,37.87488231]
[1672880507272,0.05646172,1255.6,1255.5,40.94012481]
[1672880510899,0.05646172,1255.6,1255.5,49.29612481]
[1672880513632,0.05310462,1255.6,1255.5,49.29612481]
[1672880515573,0.05310462,1255.6,1255.5,49.52612481]
[1672880516051,0.05310462,1255.6,1255.5,49.29612481]
[1672880516204,0.05310462,1255.6,1255.5,41.33117481]
[1672880516414,0.05310462,1255.6,1255.5,49.29612481]
[1672880529421,0.05310462,1255.6,1255.5,45.29612481]
[1672880534404,0.05310462,1255.6,1255.5,45.84312481]
[1672880535197,0.05310462,1255.6,1255.5,45.83951622]
[1672880536149,0.05310462,1255.6,1255.5,47.81680847]
[1672880536365,0.05310462,1255.6,1255.5,48.04680847]
[1672880536746,0.05310462,1255.6,1255.5,46.06951622]
[1672880537033,0.05310462,1255.6,1255.5,45.83951622]
[1672880538024,0.05310462,1255.6,1255.5,45.29251622]
[1672880538563,0.05310462,1255.6,1255.5,50.23555247]
[1672880538925,0.05310462,1255.6,1255.5,47.26973072]
[1672880543368,0.05310462,1255.6,1255.5,45.29251622]
[1672880544687,0.05310462,1255.6,1255.5,47.26981484]
[1672880545253,0.05310462,1255.6,1255.5,45.29251622]
[1672880546243,0.05310462,1255.6,1255.5,47.26982148]
[1672880549045,0.05310462,1255.6,1255.5,45.29251622]
[1672880552731,0.05310462,1255.6,1255.5,45.29127372]
[1672880552881,0.05310462,1255.6,1255.5,45.29251622]
[1672880556810,0.05310462,1255.6,1255.5,47.26984272]
[1672880557193,0.05310462,1255.6,1255.5,45.29251622]
[1672880557924,0.05310462,1255.6,1255.5,47.26984277]
[1672880558513,0.05310462,1255.6,1255.5,45.29251622]
[1672880558733,0.05310462,1255.6,1255.5,45.28955541]
[1672880559645,0.05081517,1255.6,1255.5,45.28955541]
[1672880561220,0.05081517,1255.6,1255.5,47.26686546]
[1672880561694,0.05081517,1255.6,1255.5,50.23279281]
[1672880562012,0.05081517,1255.6,1255.5,47.26686546]
[1672880562409,0.05081517,1255.6,1255.5,47.26686384]
[1672880563589,0.05081517,1255.6,1255.5,50.23279433]
[1672880563860,0.05081517,1255.6,1255.5,47.26686384]
[1672880564037,0.05081517,1255.6,1255.5,55.26686384]
[1672880564246,0.05646511,1255.7,1255.5,58.23275079]
[1672880564410,0.05646511,1255.7,1255.6,48.88207951]
[1672880564767,0.05646511,1255.7,1255.6,52.85301241]
[1672880565570,0.05646511,1255.7,1255.6,48.85301241]
[1672880566510,0.05646511,1255.7,1255.6,62.15179215]
[1672880566747,0.05646511,1255.7,1255.6,62.51858047]
[1672880568175,0.05646511,1255.7,1255.6,59.55292608]
[1672880569867,0.05646511,1255.7,1255.6,57.57580073]
[1672880570108,0.05646511,1255.7,1255.6,59.55289131]
[1672880570298,0.05646511,1255.7,1255.6,62.51846798]
[1672880571348,0.05646511,1255.7,1255.6,59.55289131]
[1672880573221,0.05646511,1255.7,1255.6,62.518398]
[1672880573444,0.05646511,1255.7,1255.6,59.55289131]
[1672880573999,0.05646511,1255.7,1255.6,57.57580073]
[1672880583533,0.05646511,1255.7,1255.6,57.80580073]
[1672880583968,0.05646511,1255.7,1255.6,59.78282782]
[1672880584779,0.05646511,1255.7,1255.6,57.80580073]
[1672880585860,1e-08,1255.7,1255.6,62.748191]
[1672880587387,1e-08,1255.7,1255.6,62.38140268]
[1672880587819,1e-08,1255.7,1255.6,67.41596772]
[1672880588052,1e-08,1255.7,1255.6,70.9791132]
[1672880591482,1e-08,1255.7,1255.6,105.9791132]
[1672880594796,1e-08,1255.7,1255.6,105.3814132]
[1672880596443,1e-08,1255.7,1255.6,106.57296862]
[1672880596658,1e-08,1255.7,1255.6,110.52654964]
[1672880596922,1e-08,1255.7,1255.6,112.31716552]
[1672880603708,1e-08,1255.7,1255.6,111.1256101]
[1672880604176,1e-08,1255.9,1255.7,4.0]
[1672880604337,1e-08,1255.9,1255.8,58.19734951]
[1672880604541,1e-08,1255.9,1255.8,61.49259201]
[1672880606228,1e-08,1255.9,1255.8,61.50462574]
[1672880606969,1e-08,1255.9,1255.8,63.48140689]
[1672880607200,1e-08,1255.9,1255.8,67.06657584]
[1672880607718,1e-08,1255.9,1255.8,65.08979469]
[1672880607932,1e-08,1255.9,1255.8,67.06655758]
[1672880608167,1e-08,1255.9,1255.8,65.08979469]
[1672880609590,1e-08,1255.9,1255.8,67.0665215]
[1672880609795,1e-08,1255.9,1255.8,65.08979469]
[1672880610413,1e-08,1255.9,1255.8,67.06651077]
[1672880611160,1e-08,1255.9,1255.8,65.08979469]
[1672880619399,1e-08,1255.9,1255.8,67.06654544]
[1672880620047,1e-08,1255.9,1255.8,65.08979469]
[1672880622193,1e-08,1255.9,1255.8,52.90659201]
[1672880622407,1e-08,1255.9,1255.8,44.94354201]
[1672880625920,1e-08,1255.9,1255.8,44.94066223]
[1672880639052,1e-08,1255.9,1255.8,36.97761223]
[1672880639261,1e-08,1255.9,1255.8,37.57521223]
[1672880639461,1e-08,1255.9,1255.8,36.97761223]
[1672880639874,1e-08,1255.9,1255.8,44.94066223]
[1672880642243,1e-08,1255.9,1255.8,36.97761223]
[1672880646657,1e-08,1255.9,1255.8,36.97410706]
[1672880647467,1e-08,1255.9,1255.8,44.93715706]
[1672880648004,1e-08,1255.9,1255.8,50.28694377]
[1672880649753,0.00200001,1255.9,1255.8,50.28570127]
[1672880650003,1e-08,1255.9,1255.8,50.28694377]
[1672880653804,5.89000001,1255.9,1255.8,4.04800706]
[1672880654015,1.95075162,1255.9,1255.8,3.98276456]
[1672880654336,1.89000001,1255.9,1255.8,3.98276456]
[1672880654770,4.52019495,1255.9,1255.8,3.98276456]
[1672880657032,4.52019495,1255.9,1255.8,11.94581456]
[1672880657197,4.52019495,1255.9,1255.8,0.0652425]
[1672880657411,4.52019495,1255.9,1255.7,22.0286025]
[1672880657638,1.89000001,1255.9,1255.7,41.94509201]
[1672880659135,1.89000001,1255.9,1255.8,3.98914951]
[1672880659293,1.89000001,1255.9,1255.8,19.91524951]
[1672880659500,1.89000001,1255.9,1255.8,19.98049201]
[1672880662174,4.62648095,1255.9,1255.8,0.0652425]
[1672880662387,4.62648095,1255.9,1255.7,29.9920325]
[1672880662548,4.62648095,1255.9,1255.7,33.98118201]
[1672880666749,4.62648095,1255.9,1255.7,26.01775201]
[1672880668444,4.62648095,1255.9,1255.7,12.01775201]
[1672880669013,4.62648095,1255.9,1255.7,19.98143201]
[1672880670598,4.62648095,1255.9,1255.7,26.01775201]
[1672880671338,4.62648095,1255.9,1255.7,18.05439201]
[1672880671715,4.62648095,1255.9,1255.7,26.01805201]
[1672880674913,4.62648095,1255.9,1255.7,14.0652425]
[1672880677313,4.62648095,1255.9,1255.7,22.0288125]
[1672880679408,2.73648095,1255.9,1255.7,22.0288125]
[1672880680791,2.73648095,1255.9,1255.7,29.9924925]
[1672880683205,2.73648095,1255.9,1255.7,22.0288125]
[1672880685798,2.73648095,1255.9,1255.7,14.0652425]
[1672880686017,2.73648095,1255.9,1255.7,22.0289225]
[1672880688965,2.73648095,1255.9,1255.7,37.9562825]
[1672880689325,2.73648095,1255.9,1255.7,29.9926025]
[1672880690367,2.73648095,1255.9,1255.7,22.0289225]
[1672880691051,2.73648095,1255.9,1255.7,29.9926025]
[1672880691516,2.73648095,1255.9,1255.7,22.0289225]
[1672880692539,2.73648095,1255.9,1255.7,22.02542385]
[1672880694238,1e-08,1255.9,1255.7,22.02542385]
[1672880694464,25.4748094,1256.0,1255.9,0.00310575]
[1672880694693,29.4748094,1256.0,1255.9,0.00310575]
[1672880696163,37.4365894,1256.0,1255.9,0.00310575]
[1672880700771,45.3983694,1256.0,1255.9,0.00310575]
[1672880700938,51.53500412,1256.0,1255.9,0.00310575]
[1672880702431,43.57322412,1256.0,1255.9,0.00310575]
[1672880702639,51.53500412,1256.0,1255.9,0.00310575]
[1672880703778,56.53500412,1256.0,1255.9,0.00310575]
[1672880705733,58.44300412,1256.0,1255.9,0.00310575]
[1672880706837,46.48122412,1256.0,1255.9,0.00310575]
[1672880707874,41.48122412,1256.0,1255.9,0.00310575]
[1672880709615,39.59222412,1256.0,1255.9,0.00310575]
[1672880710567,47.55400412,1256.0,1255.9,0.00310575]
[1672880714128,52.55400412,1256.0,1255.9,0.00310575]
[1672880714969,0.00016322,1255.9,1255.7,14.06174385]
[1672880718091,1.908,1255.8,1255.7,0.06174385]
[1672880718299,12.05434932,1255.8,1255.6,3.60784385]
[1672880718511,12.11510093,1255.8,1255.6,3.5461]
[1672880718887,12.11510093,1255.8,1255.6,0.5461]
[1672880719401,12.11510093,1255.8,1255.5,14.06174385]
[1672880719402,17.82336,1255.7,1255.5,14.06174385]
[1672880719620,17.88411161,1255.7,1255.5,14.06174385]
[1672880719943,21.8903467,1255.7,1255.5,14.06174385]
[1672880720248,21.8903467,1255.7,1255.5,14.60824385]
[1672880720564,13.9266667,1255.7,1255.5,14.60824385]
[1672880721129,29.8540267,1255.7,1255.5,14.60824385]
[1672880721380,21.8903467,1255.7,1255.5,14.60824385]
[1672880721596,9.92043161,1255.7,1255.5,14.60824385]
[1672880722713,17.88411161,1255.7,1255.5,14.60824385]
[1672880722920,17.88411161,1255.7,1255.5,0.60824385]
[1672880723289,17.88411161,1255.7,1255.4,35.60864385]
[1672880723442,17.88411161,1255.7,1255.4,39.59779336]
[1672880723654,23.1679867,1255.7,1255.4,35.60864385]
[1672880726914,23.1679867,1255.7,1255.4,35.06174385]
[1672880728809,23.1679867,1255.7,1255.4,0.06174385]
[1672880729020,23.1679867,1255.7,1255.3,55.95888735]
[1672880729224,23.1679867,1255.7,1255.3,59.94803686]
[1672880731114,23.1679867,1255.7,1255.3,67.91425686]
[1672880737036,15.2043067,1255.7,1255.3,75.88047686]
[1672880737253,15.2043067,1255.7,1255.3,83.85464057]
[1672880737898,15.2043067,1255.7,1255.3,83.85260919]
[1672880739788,15.2043067,1255.7,1255.3,118.85260919]
[1672880742697,0.06075161,1255.7,1255.3,118.85260919]
[1672880742910,24.86875161,1255.8,1255.3,118.85260919]
[1672880743340,5.0,1255.7,1255.3,118.85260919]
[1672880743556,5.06075161,1255.7,1255.3,118.85260919]
[1672880744544,0.06075161,1255.7,1255.3,118.85260919]
[1672880744699,24.808,1255.8,1255.5,15.9299]
[1672880744700,24.86875161,1255.8,1255.5,15.9299]
[1672880744915,24.86875161,1255.8,1255.5,15.99164385]
[1672880744916,28.48535209,1255.8,1255.5,15.99164385]
[1672880745804,36.44846209,1255.8,1255.5,8.02669385]
[1672880747174,28.48535209,1255.8,1255.5,15.99164385]
[1672880747383,9.0,1255.7,1255.5,15.99164385]
[1672880747527,8.80928682,1255.7,1255.5,15.99164385]
[1672880750480,8.80928682,1255.7,1255.5,8.02669385]
[1672880753363,3.80928682,1255.7,1255.5,8.02669385]
[1672880753536,3.74853521,1255.7,1255.5,8.02669385]
[1672880763041,3.74853521,1255.7,1255.5,0.06174385]
[1672880763256,3.74853521,1255.7,1255.4,23.95735385]
[1672880763678,7.74853521,1255.7,1255.4,15.98858154]
[1672880763884,7.80928682,1255.7,1255.4,15.98858154]
[1672880764533,3.80928682,1255.7,1255.4,15.98858154]
[1672880764770,3.74853521,1255.7,1255.4,15.98858154]
[1672880768091,1.908,1255.5,1255.4,0.06174385]
[1672880768310,8.18594951,1255.5,1255.3,0.15372597]
[1672880768534,35.66232,1255.4,1255.3,0.09198212]
[1672880768754,27.75749161,1255.4,1255.3,0.09198212]
[1672880768976,31.03000572,1255.4,1255.3,0.09198212]
[1672880769185,36.03000572,1255.4,1255.3,0.09198212]
[1672880770409,28.06442572,1255.4,1255.3,0.09198212]
[1672880770620,20.09884572,1255.4,1255.3,0.09198212]
[1672880771259,12.13326572,1255.4,1255.3,8.05820212]
[1672880771494,8.86075161,1255.4,1255.3,8.11994597]
[1672880771684,8.86075161,1255.4,1255.3,0.15372597]
[1672880771937,8.86075161,1255.4,1255.3,0.09198212]
[1672880775705,6.96075161,1255.4,1255.3,0.09198212]
[1672880776437,8.86875161,1255.4,1255.3,0.09198212]
[1672880776595,42.08474277,1255.4,1255.3,0.09198212]
[1672880778999,46.07389228,1255.4,1255.3,0.09198212]
[1672880779235,46.30389228,1255.4,1255.3,0.09198212]
[1672880779905,69.80019228,1255.4,1255.3,0.09198212]
[1672880782007,45.64988277,1255.4,1255.3,0.09198212]
[1672880782796,37.68430277,1255.4,1255.3,0.09198212]
[1672880784123,37.08650277,1255.4,1255.3,0.09198212]
[1672880785435,37.08650277,1255.4,1255.3,0.08897073]
[1672880786348,35.17850277,1255.4,1255.3,0.08897073]
[1672880786856,43.14408277,1255.4,1255.3,0.08897073]
[1672880789173,59.07524277,1255.4,1255.3,0.08897073]
[1672880792352,60.97224277,1255.4,1255.3,0.08897073]
[1672880796850,64.96139228,1255.4,1255.3,0.08897073]
[1672880797108,65.19139228,1255.4,1255.3,0.08897073]
[1672880802373,35.17850277,1255.4,1255.3,0.08897073]
[1672880803620,43.14408277,1255.4,1255.3,0.08897073]
[1672880805709,33.27850277,1255.4,1255.3,0.08897073]
[1672880807828,33.27850277,1255.4,1255.3,0.08641169]
[1672880808797,36.24408277,1255.4,1255.3,0.08641169]
[1672880809636,41.24408277,1255.4,1255.3,0.08641169]
[1672880812579,33.27850277,1255.4,1255.3,0.08641169]
[1672880814105,41.24408277,1255.4,1255.3,0.08641169]
[1672880820038,49.20966277,1255.4,1255.3,0.08641169]
[1672880821490,60.96824277,1255.4,1255.3,0.08641169]
[1672880822139,61.56604277,1255.4,1255.3,0.08641169]
[1672880823503,65.78519228,1255.4,1255.3,0.08641169]
[1672880825510,73.75077228,1255.4,1255.3,1.69e-06]
[1672880826978,74.23096902,1255.4,1255.3,1.69e-06]
[1672880828443,73.63316902,1255.4,1255.3,1.69e-06]
[1672880830741,74.23096902,1255.4,1255.3,1.69e-06]
[1672880831327,85.45996902,1255.4,1255.3,1.69e-06]
[1672880831471,87.34996902,1255.4,1255.3,1.69e-06]
[1672880833312,89.25396902,1255.4,1255.3,1.69e-06]
[1672880836619,89.25396902,1255.4,1255.2,0.03309954]
[1672880836829,28.00136951,1255.3,1255.2,0.03309954]
[1672880837039,51.96872483,1255.3,1255.2,0.03309954]
[1672880837304,52.44892157,1255.3,1255.2,0.03309954]
[1672880837514,53.04672157,1255.3,1255.2,0.03309954]
[1672880839779,57.81572157,1255.3,1255.2,0.03309954]
[1672880840219,66.17172157,1255.3,1255.2,0.03309954]
[1672880840405,66.17172157,1255.3,1255.2,9.954e-05]
[1672880840621,66.16847465,1255.3,1255.2,9.954e-05]
[1672880842081,68.07647465,1255.3,1255.2,9.954e-05]
[1672880842296,67.32342409,1255.3,1255.2,9.954e-05]
[1672880847009,66.16847465,1255.3,1255.2,9.954e-05]
[1672880847371,65.57067465,1255.3,1255.2,9.954e-05]
[1672880850868,66.16847465,1255.3,1255.2,9.954e-05]
[1672880859397,67.21802308,1255.3,1255.2,9.954e-05]
[1672880859608,66.62022308,1255.3,1255.2,9.954e-05]
[1672880859777,64.71222308,1255.3,1255.2,9.954e-05]
[1672880863889,59.71222308,1255.3,1255.2,9.954e-05]
[1672880864778,5.83294222,1255.2,1255.1,0.08793452]
[1672880864927,49.22333196,1255.2,1255.1,0.08793452]
[1672880865137,49.7035287,1255.2,1255.1,0.08793452]
[1672880865576,62.5447287,1255.2,1255.1,0.08793452]